[Event "GRENKE Chess Classic-TB 2024"]
[Site "Karlsruhe"]
[Date "2024.04.01"]
[Round "2.1"]
[White "Carlsen, Magnus"]
[Black "Rapport, Richard"]
[Result "1-0"]
[ECO "C18"]
[WhiteElo "2830"]
[BlackElo "2720"]
[Annotator "TA"]
[PlyCount "101"]
[EventDate "2024.03.26"]
[EventType "match"]
[EventCountry "GER"]
[SourceTitle "playchess.com"]
[Source "ChessBase"]
[SourceQuality "1"]
[TimeControl "2700+10"]

{[%evp 14,101,29,0,0,0,0,7,35,19,31,38,33,35,41,25,30,0,0,0,0,-25,-49,-49,-25,-27,0,16,11,0,0,0,0,0,27,7,7,0,0,-20,70,54,52,75,91,88,84,104,122,105,114,113,122,133,102,122,121,71,83,0,58,61,117,125,248,247,444,414,378,296,611,552,702,639,710,716,716,716,716,716,1645,950,995,1812,1891,1678,1542,1507,29987,29967]} 1. e4 {[%emt 0:00:10]} e6 {[%emt 0:00:28]} 2. d4 {[%emt 0:00:00]} d5 {[%emt 0:00:06]} 3. Nc3 {[%emt 0:00:05]} Bb4 {[%emt 0:00:04]} 4. e5 {[%emt 0:00:02]} c5 {[%emt 0:00:04]} 5. a3 {[%emt 0:00:03]} Bxc3+ {[%emt 0:00:03]} 6. bxc3 {[%emt 0:00:02]} Ne7 {[%emt 0:00:07]} 7. Qg4 {[%emt 0:00:04]} Qc7 {[%emt 0:01:25]} 8. Bd3 {[%emt 0:02:52]} Qa5 {[%emt 0:00:36]} 9. Bd2 {[%emt 0:00:04]} (9. Qxg7 $2 Qxc3+ (9... Rg8 $2 10. Qf6 $19) 10. Ke2 Rg8 $19) 9... c4 {[%emt 0:00:03]} 10. Be2 {[%emt 0:00:02][%cal Bd3e2,Be2h5,Bh5g4][%mdl 32]} (10. Qxg7 Rg8 11. Qxh7 cxd3 12. Qxd3 Nd7 $17 (12... Rxg2 13. h4 $17)) 10... Rg8 {[%emt 0:00:03] The position is equal.} 11. a4 {[%emt 0:00:43]} Nbc6 {[%emt 0:00:18]} 12. Qh3 {[%emt 0:00:56]} h6 {[%emt 0:03:54]} 13. Bh5 {[%emt 0:00:17]} Bd7 {[%emt 0:00:20]} 14. Ne2 {[%emt 0:00:57]} g6 {[%emt 0:03:46]} 15. Bg4 {[%emt 0:03:00]} h5 {[%emt 0:01:17]} 16. Bf3 {[%emt 0:00:02]} Nf5 {[%emt 0:00:02]} 17. g4 {[%emt 0:02:18]} hxg4 {[%emt 0:00:35]} 18. Bxg4 {[%emt 0:00:02]} O-O-O {[%emt 0:00:49]} 19. Bxf5 {[%emt 0:00:18]} exf5 {[%emt 0:05:46]} 20. Bg5 {[%emt 0:00:41]} Rde8 {[%emt 0:00:02][%cal Oc6e5]} 21. Kd2 {[%emt 0:00:43]} Rh8 {[%emt 0:01:19]} 22. Qf3 {[%emt 0:03:02]} Nd8 {[%emt 0:01:22][%cal Bc6d8,Bd8e6,Be6f4][%mdl 32]} 23. Bf6 {[%emt 0:02:33]} Rh6 {[%emt 0:01:24]} (23... Rh5 $5) 24. h4 {[%emt 0:01:51][%cal Bh2h4,Bh4h5,Bh5h6,Bh6h7][%mdl 32]} Ne6 {[%emt 0:00:07]} 25. h5 {[%emt 0:02:38]} g5 {[%emt 0:02:19]} 26. Rae1 {[%emt 0:02:51]} (26. Qxf5 $2 Nxd4 (26... Bxa4 $2 27. Bg7 $18) 27. Nxd4 Bxf5 $19) 26... f4 {[%emt 0:04:18]} ({Black should play} 26... a6 $11) 27. Reg1 {[%emt 0:04:10]} Rg8 {[%emt 0:00:33][%cal Od7c6] [#]} (27... Qxa4 $2 28. Bxg5 (28. Qxd5 $2 Bc6 $19) 28... Nxg5 29. Rxg5 $18) (27... Bxa4 28. Qg4 (28. Bxg5 Bxc2 29. Kxc2 Qa2+ 30. Kd1 Qb3+ 31. Ke1 Qb1+ 32. Kd2 Qb2+ 33. Kd1 Qb3+ 34. Ke1 Qb1+ 35. Kd2 Qb2+ 36. Kd1 Qb3+ $11)) 28. Nxf4 $1 {[%emt 0:02:07]} Rxf6 {[%emt 0:04:36]} (28... Nxf4 $2 29. Qxf4 (29. Bxg5 Rxh5 30. Rxh5 Nxh5 $18) 29... Re8 (29... gxf4 $2 30. Rxg8+ $18) 30. Rxg5 $18 (30. Qxg5 Rh7 $18)) 29. exf6 {[%emt 0:00:02]} Nxf4 {[%emt 0:00:05]} 30. h6 {[%emt 0:02:39][%cal Of3f4] aiming for Qxf4!} Ne6 {[%emt 0:00:54]} (30... Bxa4 $2 31. Qxf4 (31. h7 Rh8 $18) 31... Bxc2 (31... gxf4 $2 32. Rxg8+ Kc7 33. Ra1 $18) 32. Rxg5 $18 (32. Qg4+ Kc7 $18)) (30... Qxa4 $2 31. h7 Rh8 32. Rxg5 $18) 31. h7 {[%emt 0:01:21] Dancing on a razor blade.} Rh8 {[%emt 0:00:02]} 32. Qe3 {[%emt 0:00:33]} (32. Qh5 $6 Qc7 (32... Be8 33. f4 $16) 33. Qxf7 Qf4+ 34. Kd1 Qf3+ 35. Kd2 (35. Kc1 Qxc3 36. Rg3 Qa1+ 37. Kd2 Qxd4+ 38. Kc1 Qa1+ 39. Kd2 Qxh1 $19) 35... Nd8 $11) 32... Qd8 {[%emt 0:03:59]} (32... Bxa4 $2 33. Rxg5 Nxg5 34. Qxg5 $18) (32... Qxa4 $2 33. Ra1 Qc6 34. Rxa7 $18) 33. Rxg5 $1 {[%emt 0:00:35]} Nxg5 {[%emt 0:00:25]} (33... Bxa4 $2 34. Rg7 $18) 34. Qxg5 {[%emt 0:00:01]} Kc7 {[%emt 0:01:47]} 35. Qg7 $36 {[%emt 0:02:27][%mdl 2048] White is really pushing.} (35. Rh5 $142 {And now Qg3+ would win.} Be6 36. Qg7) 35... Be6 $16 {[%emt 0:01:05]} 36. Re1 {[%emt 0:01:57]} (36. f4 $16) 36... Kb6 {[%emt 0:02:29]} (36... Bf5 $1 $11 37. Qxf7+ Kc6) 37. Re5 $14 {[%emt 0:00:48][%mdl 1024] White has compensation.} Qc8 {[%emt 0:00:35]} (37... a5 $14) 38. f4 $16 {[%emt 0:02:20][%cal Bf2f4,Bf4f5][%mdl 32] White has more active pieces.} a6 {[%emt 0:01:41]} (38... Qf8 $16 {was called for.} 39. f5 Bd7 40. a5+ (40. Rxd5 Bxa4 41. Rc5 Bc6 $16) 40... Ka6 41. Rxd5 Ba4) 39. Kc1 $1 $18 {[%emt 0:01:26]} Ka7 $2 {[%emt 0:00:01] [#]} (39... Qf8 40. f5 Bc8 41. Rxd5 Qa3+ 42. Kd2 Qf8) 40. f5 $1 {[%emt 0:00:50][%mdl 512]} Bd7 {[%emt 0:00:02] [#]} (40... Bxf5 $2 41. Rxf5 (41. Qxf7 Rxh7 42. Qxd5 Bg6 $17) 41... Qf8 42. Kb2 $18 (42. Rxd5 Qc8 $18)) 41. a5 $1 {[%emt 0:01:13]} Qf8 $2 {[%emt 0:00:47]} (41... Bxf5 $2 {loses.} 42. Rxf5 (42. Qxf7 Rxh7 43. Qxd5 Bg6 $17) 42... Qf8 43. Kb2 $18 (43. Rxd5 Ka8 $18)) (41... Rf8 42. Rxd5 (42. Re7 Bxf5 43. Rxf7 Rh8 $14) 42... Ba4) 42. Kb2 {[%emt 0:01:37]} (42. Rxd5 Ba4 $14 (42... Qa3+ 43. Kd2 $16)) 42... Qc8 {[%emt 0:00:53]} 43. Rxd5 {[%emt 0:00:40] Black is weak on the dark squares} Bc6 {[%emt 0:00:15]} 44. Re5 {[%emt 0:00:26]} Bd7 {[%emt 0:00:04]} 45. Qxf7 {[%emt 0:00:28] Strongly threatening Qg7.} Bxf5 {[%emt 0:01:05]} 46. Rc5 {[%emt 0:00:03]} Qe6 {[%emt 0:00:41]} 47. Qxe6 {[%emt 0:00:01]} Bxe6 {[%emt 0:00:01]} 48. Rc7 {[%emt 0:00:03]} Bf5 {[%emt 0:00:21] [#]} 49. Rg7 $1 {[%emt 0:00:02]} ({And not} 49. Rxc4 Rxh7 (49... Bxh7 50. d5 $11) 50. Rc5 Bh3 $15) 49... Bxh7 {[%emt 0:00:11]} 50. f7 {[%emt 0:00:01]} Bd3 {[%emt 0:00:09]} 51. cxd3 {[%emt 0:00:16] Weighted Error Value: White=0.10 (very precise) /Black=0.46.  Mistake:       	White=2     	Black=6      Inaccurate:     	White=1     	Black=3      OK:         	White=9     	Black=15     Best:        	White=2     	Black=4      Strong:       	White=3     	---        Brilliant:      	White=1     	---} 1-0

[Event "GRENKE Chess Classic-TB 2024"]
[Site "Karlsruhe"]
[Date "2024.04.01"]
[Round "2.1"]
[White "Ding, Liren"]
[Black "Fridman, Daniel"]
[Result "1-0"]
[ECO "A14"]
[WhiteElo "2762"]
[BlackElo "2590"]
[Annotator "TA"]
[PlyCount "115"]
[EventDate "2024.03.26"]
[EventType "match"]
[EventCountry "GER"]
[SourceTitle "playchess.com"]
[Source "ChessBase"]
[SourceQuality "1"]
[TimeControl "2700+10"]

{[%evp 35,115,25,17,18,34,22,51,79,54,78,112,115,114,112,117,118,120,119,125,127,134,136,123,128,142,106,139,117,132,132,208,208,204,189,197,211,211,211,204,201,208,170,170,160,206,183,247,246,247,246,238,214,212,206,221,227,238,231,229,241,207,181,243,228,265,250,334,206,204,204,670,670,29975,29977,29977,29978,29978,29979,29979,29980,29980,29981]} 1. c4 {[%emt 0:00:01]} e6 {[%emt 0:00:01]} 2. g3 {[%emt 0:00:02]} d5 {[%emt 0:00:02]} 3. Bg2 {[%emt 0:00:01]} Nf6 {[%emt 0:00:01]} 4. Nf3 {[%emt 0:00:01]} Be7 {[%emt 0:00:13]} 5. O-O {[%emt 0:00:02]} O-O {[%emt 0:00:02]} 6. d4 {[%emt 0:00:22]} dxc4 {[%emt 0:00:03]} 7. Qc2 {[%emt 0:00:01]} a6 {[%emt 0:00:05]} 8. a4 $1 {[%emt 0:00:01] 8.a4 is better than 8.Qxc4.} Nc6 {[%emt 0:00:02]} 9. Qxc4 {[%emt 0:01:05]} Na5 {[%emt 0:00:01] E05: Open Catalan: 5 Nf3 Be7.} 10. Qc2 {[%emt 0:02:29]} b6 {[%emt 0:00:02]} 11. Ne5 {[%emt 0:03:50]} Bb7 {[%emt 0:00:22]} 12. Bxb7 {[%emt 0:00:02]} Nxb7 {[%emt 0:00:02]} 13. Nc6 {[%emt 0:00:05]} Qe8 {[%emt 0:00:02]} 14. Rd1 {[%emt 0:00:45]} Bc5 {[%emt 0:00:06]} 15. Ne5 {[%emt 0:00:04]} Bd6 {[%emt 0:00:01]} 16. Nc3 {[%emt 0:00:22]} Na5 $146 {[%emt 0:09:08]} ({Predecessor:} 16... Nd5 17. Nc4 Qc6 18. Qb3 Nxc3 19. Qxc3 b5 20. Ne3 Qxc3 21. bxc3 Na5 22. Ba3 Rfb8 23. axb5 axb5 {½-½ Deac,B (2679)-Safarli,E (2589) Titled Tuesday intern op 26th Apr Early blitz 2022 (8)}) 17. Bf4 {[%emt 0:03:29]} Nc6 {[%emt 0:09:03]} 18. Rac1 {[%emt 0:00:45]} Nb4 {[%emt 0:00:25]} 19. Qb3 {[%emt 0:00:14]} Nfd5 {[%emt 0:03:29]} 20. Bd2 {[%emt 0:01:10]} b5 {[%emt 0:01:58]} (20... Nxc3 {simplifies} 21. Bxc3 Nd5 22. e4 Nxc3 23. Rxc3 Bxe5 24. dxe5 Qe7) 21. axb5 {[%emt 0:00:52]} axb5 {[%emt 0:00:02]} 22. Ne4 {[%emt 0:00:02]} Bxe5 {[%emt 0:04:07]} 23. Bxb4 {[%emt 0:00:42]} Nxb4 {[%emt 0:00:06]} 24. Qxb4 {[%emt 0:00:13]} Ra4 {[%emt 0:01:36]} 25. Qc5 {[%emt 0:00:02]} Bd6 {[%emt 0:00:12]} 26. Nxd6 {[%emt 0:00:01]} cxd6 {[%emt 0:00:02]} 27. Qxd6 {[%emt 0:00:01]} Qa8 {[%emt 0:00:53]} 28. d5 {[%emt 0:01:48]} exd5 {[%emt 0:00:44]} 29. Rxd5 {[%emt 0:00:10]} (29. Qxd5 Qxd5 30. Rxd5 Rb4) 29... Ra1 {[%emt 0:00:47]} 30. Rdd1 {[%emt 0:00:02]} Ra2 {[%emt 0:02:11]} 31. Qe5 {[%emt 0:01:18]} Re8 {[%emt 0:09:28]} 32. Qxb5 {[%emt 0:00:02]} Rb8 {[%emt 0:00:01]} (32... Qb8 $16 33. Qxb8 Rxb8) 33. Qf5 $1 $18 {[%emt 0:00:02]} Raxb2 {[%emt 0:01:00]} 34. Rd7 $1 {[%emt 0:00:01]} Rf8 {[%emt 0:01:56] [#]} 35. Rxf7 $1 {[%emt 0:00:18]} Rxf7 {[%emt 0:00:02]} 36. Rc8+ {[%emt 0:00:00]} Qxc8 {[%emt 0:00:01]} 37. Qxc8+ {[%emt 0:00:01]} Rf8 {[%emt 0:00:02]} 38. Qe6+ {[%emt 0:00:15]} Kh8 {[%emt 0:00:02]} 39. f4 {[%emt 0:00:09]} h6 {[%emt 0:00:23]} (39... Rfb8 $16 {was worth a try.} 40. Qe7 Ra8) 40. Kf2 $18 {[%emt 0:00:01]} Ra8 {[%emt 0:00:06]} (40... Rfb8 $142 41. f5 R2b6) 41. h4 {[%emt 0:01:11]} Rab8 {[%emt 0:00:21]} 42. Kf3 {[%emt 0:00:12]} R2b6 {[%emt 0:00:03]} 43. Qd7 {[%emt 0:01:30]} R6b7 {[%emt 0:00:01]} 44. Qd4 {[%emt 0:00:01]} Rb4 {[%emt 0:00:02]} 45. Qa7 {[%emt 0:00:05]} R4b7 {[%emt 0:00:01]} 46. Qf2 {[%emt 0:00:02]} Rb3+ {[%emt 0:00:02] [#]} 47. e3 $1 {[%emt 0:00:14]} Rb1 {[%emt 0:00:50]} 48. Kg4 {[%emt 0:00:16]} Re8 {[%emt 0:00:08]} (48... R1b4 $142 49. Qc2 Ra8) 49. Qd2 $18 {[%emt 0:00:09]} Rb3 {[%emt 0:00:36]} 50. Kf3 {[%emt 0:00:02]} h5 {[%emt 0:01:28]} 51. Kf2 {[%emt 0:00:00]} Ra3 {[%emt 0:00:05]} 52. Qc1 {[%emt 0:00:09]} Rb3 $2 {[%emt 0:00:06]} (52... Ra6 53. Qc5 g6) 53. Qc5 $18 {[%emt 0:00:03]} Rexe3 {[%emt 0:01:15]} 54. Qxe3 {[%emt 0:00:02]} Rxe3 {[%emt 0:00:02]} 55. Kxe3 {[%emt 0:00:01]} g6 {[%emt 0:00:03]} 56. Ke4 {[%emt 0:00:02]} Kg7 {[%emt 0:00:01]} 57. Ke5 {[%emt 0:00:12]} Kf7 {[%emt 0:00:02]} 58. f5 {[%emt 0:00:13]} 1-0

[Event "GRENKE Chess Classic-TB 2024"]
[Site "Karlsruhe"]
[Date "2024.04.01"]
[Round "2.1"]
[White "Keymer, Vincent"]
[Black "Vachier-Lagrave, Maxime"]
[Result "1/2-1/2"]
[ECO "D33"]
[WhiteElo "2738"]
[BlackElo "2728"]
[Annotator "TA"]
[PlyCount "101"]
[EventDate "2024.03.26"]
[EventType "match"]
[EventCountry "GER"]
[SourceTitle "playchess.com"]
[Source "ChessBase"]
[SourceQuality "1"]
[TimeControl "2700+10"]

{[%evp 27,101,-24,-30,-29,-31,-22,-28,-28,-19,-35,-25,-84,-95,-105,-86,-92,-94,-86,-89,-89,-68,-100,-85,-79,-19,-21,-16,-7,-25,-52,-53,-50,-46,-47,-28,-40,-31,-41,-13,-14,26,21,51,51,55,51,57,16,20,17,16,14,15,15,15,17,18,17,22,8,8,0,0,0,0,0,0,0,0,0,0,0,0,0,0,0]} 1. Nf3 {[%emt 0:00:03]} Nf6 {[%emt 0:00:13]} 2. c4 {[%emt 0:00:02]} c5 {[%emt 0:00:01]} 3. Nc3 {[%emt 0:00:03]} Nc6 {[%emt 0:00:04]} 4. g3 {[%emt 0:00:32]} d5 {[%emt 0:01:57]} 5. d4 {[%emt 0:00:35]} e6 {[%emt 0:00:42]} 6. cxd5 {[%emt 0:00:05]} exd5 {[%emt 0:00:41]} 7. a3 {D33: Tarrasch Defence: 6 g3 sidelines.} Bg4 {[%emt 0:03:34]} 8. Be3 {[%emt 0:05:41]} Be7 $146 {[%emt 0:02:03]} ({Predecessor:} 8... Bxf3 9. exf3 a6 10. Bg2 Be7 11. O-O O-O 12. f4 Rb8 13. h3 cxd4 14. Bxd4 Ne4 15. Nxe4 dxe4 {1-0 Narayanan,S (2647)-Erigaisi,A (2634) Tsaghkadzor ChessMood op 2021 (8)}) 9. Bg2 {[%emt 0:02:21]} O-O {[%emt 0:00:04]} 10. O-O {[%emt 0:03:40]} Rc8 {[%emt 0:00:45]} 11. h3 {[%emt 0:02:18]} Bxf3 {[%emt 0:00:38]} 12. Bxf3 {[%emt 0:00:02]} Qd7 {[%emt 0:00:51]} 13. Kg2 {[%emt 0:08:47]} Rfd8 {[%emt 0:00:14]} 14. Rc1 {[%emt 0:00:10]} (14. dxc5 $2 {loses.} d4 15. Bd2 dxc3 $19) 14... Qe6 {[%emt 0:03:42]} 15. Na4 {[%emt 0:03:32]} (15. dxc5 $2 {perishes.} d4 16. Bxd4 Nxd4 $19 (16... Rxd4 $2 17. Qc2 $19)) 15... c4 {[%emt 0:03:29]} 16. Nc3 {[%emt 0:00:42]} h6 {[%emt 0:00:03]} 17. Qc2 {[%emt 0:00:34]} Bd6 {[%emt 0:00:48]} 18. Rcd1 {[%emt 0:01:42]} a6 {[%emt 0:02:45]} 19. Bf4 {[%emt 0:02:04]} (19. Qd2 $11 {remains equal.}) 19... Bxf4 $17 {[%emt 0:00:48]} 20. gxf4 {[%emt 0:00:01]} Ne7 {[%emt 0:00:17]} 21. e3 {[%emt 0:01:02]} b5 {[%emt 0:03:52]} 22. Kh2 {[%emt 0:01:22]} g6 {[%emt 0:00:06]} 23. Rg1 {[%emt 0:00:22]} Kg7 {[%emt 0:00:02]} 24. Rg2 {[%emt 0:03:23]} Rb8 {[%emt 0:01:16]} 25. Ne2 {[%emt 0:00:35]} Ne4 {[%emt 0:02:01]} (25... Qd7 $17 26. Rgg1 Rb6) 26. Bxe4 $11 {[%emt 0:00:23]} Qxe4 {[%emt 0:00:01]} 27. Qxe4 {[%emt 0:00:22]} dxe4 {[%emt 0:00:02]} 28. Ng3 {[%emt 0:01:30]} f5 {[%emt 0:00:03]} 29. h4 {[%emt 0:00:01]} Kf6 {[%emt 0:00:17]} 30. Ne2 {[%emt 0:01:12]} a5 31. Ra1 {[%emt 0:01:18]} Rd6 {[%emt 0:01:52]} 32. Rgg1 $1 {[%emt 0:00:04]} b4 {[%emt 0:01:02]} 33. axb4 {[%emt 0:00:09]} axb4 {[%emt 0:00:01]} 34. Rgc1 {[%emt 0:00:05]} Rc8 {[%emt 0:00:01]} 35. Ra5 $1 {[%emt 0:00:44]} g5 {[%emt 0:01:39]} 36. hxg5+ {[%emt 0:02:14]} hxg5 {[%emt 0:00:01]} 37. Kg1 {[%emt 0:01:16]} gxf4 {[%emt 0:02:24]} 38. Nxf4 {[%emt 0:00:01]} c3 {[%emt 0:00:01]} 39. bxc3 {[%emt 0:00:02]} bxc3 {[%emt 0:00:02]} 40. Rc5 {[%emt 0:00:54]} Rxc5 {[%emt 0:00:55]} 41. dxc5 {[%emt 0:00:01]} Rc6 {[%emt 0:00:01]} 42. Rxc3 {[%emt 0:00:04]} Ke5 {[%emt 0:00:01]} 43. Kg2 {[%emt 0:01:06]} Ng6 {[%emt 0:00:15]} 44. Nxg6+ {[%emt 0:00:55]} Rxg6+ {[%emt 0:00:02]} 45. Kh3 {[%emt 0:00:18]} Kd5 {[%emt 0:00:01]} 46. Rc2 {[%emt 0:00:18]} Kc6 {[%emt 0:00:14]} 47. Ra2 {[%emt 0:00:01]} Kxc5 {[%emt 0:01:08]} 48. Ra5+ {[%emt 0:00:01]} Kc4 {[%emt 0:00:01]} 49. Rxf5 {[%emt 0:00:02]} Kd3 {[%emt 0:00:01]} 50. Rf4 {[%emt 0:00:28]} Ke2 {[%emt 0:00:01]} 51. Rxe4 {[%emt 0:00:19]} 1/2-1/2

[Event "GRENKE Chess Classic-TB 2024"]
[Site "Karlsruhe"]
[Date "2024.04.01"]
[Round "2.1"]
[White "Vachier-Lagrave, Maxime"]
[Black "Keymer, Vincent"]
[Result "1/2-1/2"]
[ECO "A29"]
[WhiteElo "2728"]
[BlackElo "2738"]
[Annotator "TA"]
[PlyCount "75"]
[EventDate "2024.03.26"]
[EventType "match"]
[EventCountry "GER"]
[SourceTitle "playchess.com"]
[Source "ChessBase"]
[SourceQuality "1"]
[TimeControl "2700+10"]

{[%evp 9,75,5,2,3,20,7,1,10,27,25,19,13,25,17,25,28,23,17,18,13,9,3,12,9,11,9,12,13,10,11,8,5,10,8,8,0,-3,-10,0,0,0,0,0,0,0,0,0,0,0,0,0,0,0,0,0,0,0,0,0,0,0,0,0,0,0,0,0,0]} 1. c4 {[%emt 0:00:02]} Nf6 {[%emt 0:00:02]} 2. Nc3 {[%emt 0:00:02]} e5 {[%emt 0:00:01]} 3. Nf3 {[%emt 0:00:32]} Nc6 {[%emt 0:00:02]} 4. g3 {[%emt 0:00:08]} Bb4 {[%emt 0:00:02]} 5. Nd5 {[%emt 0:00:04]} e4 {[%emt 0:00:16]} 6. Nh4 {[%emt 0:00:06]} O-O {[%emt 0:00:03]} 7. Bg2 {[%emt 0:01:45]} d6 {[%emt 0:00:03]} 8. a3 {[%emt 0:00:33]} Ba5 {[%emt 0:01:00]} 9. b4 $1 {[%emt 0:01:08]} Bb6 {[%emt 0:00:01]} 10. Bb2 {[%emt 0:00:01] [#] aiming for Nxf6+.} Bd4 {[%emt 0:00:02]} 11. Bxd4 {[%emt 0:00:02]} Nxd4 {[%emt 0:00:01]} 12. e3 $1 {[%emt 0:00:10]} ({Don't blunder} 12. Nxf6+ $2 Qxf6 13. Rc1 g5 $19) 12... Nf5 {[%emt 0:00:02]} 13. Nxf5 {[%emt 0:00:29]} Bxf5 {[%emt 0:00:03] The position is equal.} 14. Nxf6+ {[%emt 0:00:27]} Qxf6 {[%emt 0:00:02]} 15. O-O {[%emt 0:00:03]} c6 {[%emt 0:03:07]} 16. f3 {[%emt 0:01:17]} Qe6 {[%emt 0:01:07]} 17. fxe4 {[%emt 0:00:02]} Bxe4 {[%emt 0:00:03]} 18. Bxe4 {[%emt 0:00:01]} Qxe4 {[%emt 0:00:02]} 19. Rf4 {[%emt 0:00:02]} Qe5 {[%emt 0:00:50]} 20. Rb1 {[%emt 0:00:01]} Rad8 {[%emt 0:02:19]} 21. b5 {[%emt 0:01:49]} d5 {[%emt 0:01:35]} 22. cxd5 {[%emt 0:01:58]} Qxd5 {[%emt 0:04:04]} 23. bxc6 {[%emt 0:00:01]} bxc6 {[%emt 0:00:02]} 24. Rb2 {[%emt 0:00:32]} g6 {[%emt 0:05:46]} 25. Qc2 {[%emt 0:01:51]} Rd7 {[%emt 0:01:59]} 26. Rd4 {[%emt 0:03:01]} Qe6 {[%emt 0:00:02]} 27. Qc4 {[%emt 0:00:03] [#] Threatens to win with Qxe6.} Qf5 {[%emt 0:02:46]} 28. Rf4 {[%emt 0:01:36]} Qa5 {[%emt 0:01:27][%csl LRa3,LRd2]} 29. Qa4 {[%emt 0:00:36]} Qe5 {[%emt 0:03:20]} 30. Qxc6 {[%emt 0:01:52]} Qxb2 {[%emt 0:01:27]} 31. Qxd7 {[%emt 0:00:02]} Qxa3 $11 {[%emt 0:00:02][%mdl 4096] Endgame. KQR-KQR} 32. Ra4 {[%emt 0:00:04]} Qc1+ {[%emt 0:00:01]} 33. Kg2 {[%emt 0:00:04]} Qd1 {[%emt 0:00:04]} 34. Rxa7 {[%emt 0:00:42]} Qe2+ {[%emt 0:00:02]} 35. Kg1 {[%emt 0:00:01]} Qe1+ {[%emt 0:00:14]} 36. Kg2 {[%emt 0:00:01]} Qe2+ {[%emt 0:00:01]} 37. Kg1 {[%emt 0:00:01]} Qe1+ {[%emt 0:00:02]} 38. Kg2 {[%emt 0:00:00] An interesting draw.   Weighted Error Value: White=0.01 (flawless) /Black=0.02 (flawless) .  OK:         	White=16    	Black=15     Best:        	White=1     	Black=3      Strong:       	White=2     	---} 1/2-1/2